[Event "German Bundesliga 2024-25"]
[Site "Germany"]
[Date "2025.01.11"]
[Round "5"]
[White "Abdusattorov, Nodirbek"]
[Black "Firouzja, Alireza"]
[Result "1/2-1/2"]
[Annotator "TA"]
[ECO "B44"]
[WhiteElo "2768"]
[BlackElo "2763"]
[PlyCount "81"]
[EventDate "2024.09.27"]
[EventType "team-tourn"]
[EventCountry "GER"]
[SourceTitle "playchess.com"]
[Source "ChessBase"]
[SourceQuality "1"]
[WhiteTeam "Viernheim"]
[BlackTeam "Baden-Baden"]
[TimeControl "40/5400+30:1800+30"]

{[%evp 17,81,5,0,0,0,6,11,0,40,35,35,39,41,28,31,39,37,25,41,39,49,50,51,58,63,55,52,31,57,13,54,50,52,42,104,140,119,33,36,0,0,0,15,0,0,0,15,0,0,0,0,0,0,0,0,0,0,-112,-128,-135,-103,-112,0,0,0,-121]} 1. c4 {[%emt 0:01:00]} Nf6 {[%emt 0:01:00]} 2. Nc3 {[%emt 0:00:30]} c5 {[%emt 0:01:30]} 3. Nf3 {[%emt 0:00:00]} e6 {[%emt 0:00:30]} 4. e4 {[%emt 0:01:00]} Nc6 {[%emt 0:00:00]} 5. d4 {[%emt 0:00:30]} cxd4 {[%emt 0:00:00]} 6. Nxd4 {[%emt 0:00:00]} Bb4 {[%emt 0:00:30]} 7. Nxc6 {[%emt 0:00:00]} bxc6 {[%emt 0:00:00]} 8. Bd3 {[%emt 0:00:30]} e5 {[%emt 0:00:00]} 9. O-O {[%emt 0:00:30]} O-O {[%emt 0:00:30]} 10. h3 {[%emt 0:01:30]} Re8 {[%emt 0:08:30]} 11. Qc2 {[%emt 0:05:30]} h6 {[%emt 0:10:30]} 12. Be3 {[%emt 0:09:30]} d6 {[%emt 0:13:30]} 13. Na4 {[%emt 0:11:30]} c5 {[%emt 0:15:30]} 14. a3 {[%emt 0:05:30]} Ba5 {[%emt 0:01:30]} 15. Rab1 {[%emt 0:00:30]} Rb8 {[%emt 0:02:30]} 16. Rfd1 {[%emt 0:08:30]} Bd7 {[%emt 0:18:30]} 17. Nc3 {[%emt 0:00:30][%cal Ba4c3,Bc3e2,Be2g3][%mdl 32]} a6 {[%emt 0:01:30]} 18. Ne2 {[%emt 0:06:30]} Nh7 {[%emt 0:03:30]} 19. Ng3 {[%emt 0:01:30]} Ng5 {[%emt 0:00:41]} 20. Be2 {[%emt 0:03:30]} Ne6 {[%emt 0:02:43]} 21. Rxd6 {[%emt 0:01:30][%cal Oc2d3]} Qc7 $1 {[%emt 0:01:05]} 22. Rd3 {[%emt 0:03:30]} Nd4 {[%emt 0:00:38]} 23. Qd1 {[%emt 0:00:30]} Be6 {[%emt 0:06:25]} 24. Bxd4 {[%emt 0:10:30]} exd4 {[%emt 0:00:42]} 25. Nh5 {[%emt 0:00:30]} Re7 {[%emt 0:07:46]} (25... Bxc4 $6 26. Rg3 Bxe2 27. Qxe2 $18 (27. Rxg7+ Kh8 $16)) (25... Kh8 $14) 26. Rg3 $16 {[%emt 0:00:30]} f5 {[%emt 0:01:40]} 27. exf5 {[%emt 0:01:30]} (27. Bd3 $16 fxe4 28. Bxe4) 27... Bxf5 $14 {[%emt 0:00:10]} 28. Nf6+ {[%emt 0:09:09]} Kh8 {[%emt 0:00:08]} 29. Nd5 $1 {[%emt 0:01:04][%csl LRc7,LRe7]} Bxb1 {[%emt 0:00:19]} 30. Nxc7 {[%emt 0:00:21]} Bxc7 {[%emt 0:01:19]} 31. Rf3 {[%emt 0:02:08]} Bg6 {[%emt 0:01:20][%cal Ob8e8]} 32. Bf1 {[%emt 0:05:32]} Rbe8 $1 {[%emt 0:00:14]} 33. Qd2 {[%emt 0:05:43] Strongly threatening b4.} Kg8 $1 {[%emt 0:00:20]} 34. Rb3 {[%emt 0:00:41]} (34. b4 $2 Re1 $19) 34... Re1 {[%emt 0:00:32]} 35. Rb7 {[%emt 0:00:44]} Be5 {[%emt 0:00:59]} 36. g3 {[%emt 0:00:54]} (36. Qxe1 $2 {is the wrong capture.} Bh2+ 37. Kxh2 Rxe1 $19) 36... Bf6 {[%emt 0:00:40]} 37. Rb3 {[%emt 0:02:27] [#]} (37. Rb6 $1 $11 {was the only way to keep the balance.}) 37... d3 $1 $17 {[%emt 0:00:51][%mdl 1024] Black has strong compensation.} 38. Kg2 {[%emt 0:01:42] [#]} Be4+ $1 {[%emt 0:00:24]} 39. Kg1 {[%emt 0:00:18]} Bg6 {[%emt 0:00:30] and ...R8e2 should not be overlooked} 40. Kg2 $1 {[%emt 0:00:34]} ({But not} 40. Rxd3 $2 Bxd3 41. Qxd3 Rd8 $19) 40... Be4+ {[%emt 0:00:34]} 41. Kg1 {[%emt 0:00:43]} 1/2-1/2

[Event "German Bundesliga 2024-25"]
[Site "Germany"]
[Date "2025.01.11"]
[Round "5"]
[White "Aronian, Levon"]
[Black "Duda, Jan-Krzysztof"]
[Result "1/2-1/2"]
[Annotator "TA"]
[ECO "A28"]
[WhiteElo "2747"]
[BlackElo "2740"]
[PlyCount "43"]
[EventDate "2024.09.27"]
[EventType "team-tourn"]
[EventCountry "GER"]
[SourceTitle "playchess.com"]
[Source "ChessBase"]
[SourceQuality "1"]
[WhiteTeam "Baden-Baden"]
[BlackTeam "Viernheim"]
[TimeControl "40/5400+30:1800+30"]

{[%evp 9,43,0,7,-8,0,-14,29,20,15,22,16,31,20,12,23,0,0,-2,0,-8,0,-7,-8,-12,0,0,0,-41,0,-16,0,0,0,0,-4,-27]} 1. c4 {[%emt 0:01:00]} Nf6 {[%emt 0:01:00]} 2. Nc3 {[%emt 0:00:00]} e5 {[%emt 0:00:30]} 3. Nf3 {[%emt 0:00:00]} Nc6 {[%emt 0:00:30]} 4. e4 {[%emt 0:00:00]} Bb4 {[%emt 0:04:30]} 5. d3 {[%emt 0:00:00]} d6 {[%emt 0:00:00]} 6. Be2 {[%emt 0:00:30]} a5 {[%emt 0:07:00]} 7. O-O {[%emt 0:00:30]} Bc5 {[%emt 0:00:30]} 8. Be3 {[%emt 0:03:30]} Bxe3 {[%emt 0:05:30]} 9. fxe3 {[%emt 0:00:30]} O-O {[%emt 0:00:30]} 10. Qe1 {[%emt 0:08:30]} Ne7 {[%emt 0:17:30]} 11. Qg3 {[%emt 0:02:30][%cal Of3e5] White wants to play Nxe5!.} Ng6 {[%emt 0:00:30][%cal Be7g6,Bg6h8,Bh8f7][%mdl 32]} 12. Ng5 {[%emt 0:03:30]} c6 {[%emt 0:10:30]} 13. h4 {[%emt 0:02:30]} Nh8 {[%emt 0:13:30]} 14. h5 {[%emt 0:08:30][%cal Oh5h6]} h6 {[%emt 0:00:30]} 15. Nh3 {[%emt 0:00:00]} Nh7 {[%emt 0:05:30]} 16. Rad1 {[%emt 0:01:00]} f6 {[%emt 0:02:30]} 17. d4 {[%emt 0:04:30]} Nf7 {[%emt 0:01:30]} 18. Rd2 {[%emt 0:06:30]} Qe7 {[%emt 0:03:30]} 19. Bg4 {[%emt 0:01:30]} Nhg5 {[%emt 0:01:30]} 20. d5 {[%emt 0:05:30]} Qc7 {[%emt 0:03:30]} 21. Nf2 {[%emt 0:06:30]} Qb6 {[%emt 0:03:30]} 22. Re1 {[%emt 0:04:30]} 1/2-1/2

[Event "German Bundesliga 2024-25"]
[Site "Germany"]
[Date "2025.01.11"]
[Round "5"]
[White "Vachier-Lagrave, Maxime"]
[Black "Maghsoodloo, Parham"]
[Result "1/2-1/2"]
[Annotator "TA"]
[ECO "C78"]
[WhiteElo "2737"]
[BlackElo "2674"]
[PlyCount "57"]
[EventDate "2024.09.27"]
[EventType "team-tourn"]
[EventCountry "GER"]
[SourceTitle "playchess.com"]
[Source "ChessBase"]
[SourceQuality "1"]
[WhiteTeam "Baden-Baden"]
[BlackTeam "Viernheim"]
[TimeControl "40/5400+30:1800+30"]

{[%evp 19,57,20,43,42,22,26,17,0,14,6,24,0,27,46,25,31,45,28,27,31,65,0,11,8,4,2,58,0,0,0,0,0,-1,-1,-8,-6,0,0,0,-18]} 1. e4 {[%emt 0:01:00]} e5 {[%emt 0:01:00]} 2. Nf3 {[%emt 0:00:00]} Nc6 {[%emt 0:00:00]} 3. Bb5 {[%emt 0:00:00][%cal Bf1b5,Bb5a4,Ba4b3][%mdl 32]} a6 {[%emt 0:00:00]} 4. Ba4 {[%emt 0:00:00]} Nf6 {[%emt 0:00:30]} 5. O-O {[%emt 0:00:00]} Bc5 {[%emt 0:00:00]} 6. c3 {[%emt 0:00:30]} b5 {[%emt 0:00:00]} 7. Bb3 {[%emt 0:00:00]} d6 {[%emt 0:00:30]} 8. d4 {[%emt 0:00:00]} Bb6 {[%emt 0:00:00]} 9. a4 {[%emt 0:00:30]} Bb7 {[%emt 0:00:00]} 10. Re1 {[%emt 0:02:30]} h6 {[%emt 0:00:30]} 11. Be3 {[%emt 0:07:30]} exd4 {[%emt 0:01:30]} 12. cxd4 {[%emt 0:01:30][%cal Bc3d4,Bd4d5][%mdl 32]} Na5 {[%emt 0:00:30]} 13. Ba2 {[%emt 0:08:30]} O-O {[%emt 0:04:30]} 14. d5 {[%emt 0:03:30] Black should prevent Bxb6.} Bxe3 {[%emt 0:05:30]} 15. Rxe3 {[%emt 0:00:00]} c6 {[%emt 0:03:30]} 16. b4 {[%emt 0:07:00]} Nc4 {[%emt 0:01:30]} 17. Bxc4 {[%emt 0:00:30]} bxc4 {[%emt 0:00:30]} 18. Nc3 {[%emt 0:05:30]} cxd5 {[%emt 0:10:30]} 19. exd5 {[%emt 0:00:30]} a5 {[%emt 0:00:00]} 20. Rb1 {[%emt 0:03:30] White is more active.} (20. b5 $14) 20... axb4 $11 {[%emt 0:15:00]} 21. Rxb4 {[%emt 0:00:30][%cal Bb1b4,Bb4c4,Bc4d4,Bd4d6][%mdl 32]} Qc7 {[%emt 0:03:30]} 22. Qd4 {[%emt 0:02:30]} Rab8 {[%emt 0:20:30]} (22... Ra5 $1 $11) 23. Qxc4 {[%emt 0:23:30]} ({White should play} 23. h3 $14) 23... Qxc4 {[%emt 0:00:30]} 24. Rxc4 {[%emt 0:00:30]} Nxd5 {[%emt 0:00:30]} 25. Nxd5 {[%emt 0:00:30]} Bxd5 {[%emt 0:00:00]} 26. Rd4 {[%emt 0:00:00]} Bxf3 {[%emt 0:00:00]} 27. gxf3 {[%emt 0:00:00]} Rb1+ {[%emt 0:00:30]} 28. Kg2 {[%emt 0:00:00]} Ra1 {[%emt 0:01:30]} 29. Rxd6 {[%emt 0:02:00]} 1/2-1/2

[Event "German Bundesliga 2024-25"]
[Site "Germany"]
[Date "2025.01.11"]
[Round "5"]
[White "Mamedyarov, Shakhriyar"]
[Black "Keymer, Vincent"]
[Result "1/2-1/2"]
[Annotator "TA"]
[ECO "A21"]
[WhiteElo "2732"]
[BlackElo "2733"]
[PlyCount "55"]
[EventDate "2024.09.27"]
[EventType "team-tourn"]
[EventCountry "GER"]
[TimeControl "40/5400+30:1800+30"]

{[%evp 9,55,4,9,12,24,20,9,15,9,27,20,4,8,5,25,-3,-4,-4,25,32,31,35,35,25,25,0,0,0,0,0,0,0,0,0,0,0,0,0,0,0,0,0,0,0,0,0,0,0]} 1. c4 {[%emt 0:01:00]} e5 {[%emt 0:01:00]} 2. Nc3 {[%emt 0:00:30]} Bb4 {[%emt 0:00:00]} 3. Nd5 {[%emt 0:00:00]} Be7 {[%emt 0:00:00]} 4. d4 {[%emt 0:01:00]} exd4 {[%emt 0:01:30]} 5. Qxd4 {[%emt 0:00:30]} Nf6 {[%emt 0:00:00]} 6. Nxe7 {[%emt 0:00:30] A21: English Opening: 1...e5 2 Nc3.} Qxe7 {[%emt 0:00:00]} 7. Bg5 {[%emt 0:00:30]} Nc6 {[%emt 0:00:30]} 8. Qc3 {[%emt 0:00:00]} d6 {[%emt 0:00:30]} 9. Nf3 {[%emt 0:06:00]} Ne5 {[%emt 0:00:30]} 10. e3 {[%emt 0:02:30]} h6 {[%emt 0:21:30]} 11. Bh4 {[%emt 0:10:30]} Bf5 $146 {[%emt 0:02:30]} (11... g5 12. Nxe5 dxe5 13. Bg3 Nd7 14. h4 g4 15. c5 h5 16. Rc1 c6 17. Bd3 O-O {1-0 Carlsen,M (2875)-Anand,V (2767) Norway Chess Armageddon 7th blitz 2019 (1)}) 12. Be2 {[%emt 0:03:30][%cal Oc4c5]} g5 {[%emt 0:12:30] [#] White must now prevent ...Ne4.} 13. Nxe5 {[%emt 0:06:30]} Qxe5 {[%emt 0:04:30]} (13... Ne4 $5 14. Qa5 dxe5 $11) 14. Qxe5+ {[%emt 0:06:30]} dxe5 {[%emt 0:00:30]} 15. Bg3 {[%emt 0:00:30]} Nd7 {[%emt 0:00:30]} 16. f4 {[%emt 0:00:30]} O-O-O {[%emt 0:06:30][%cal Ba8d8,Bd8d3,Bd3d2][%mdl 32]} 17. fxe5 {[%emt 0:03:30]} Rhe8 {[%emt 0:08:30] The position is equal.} 18. O-O {[%emt 0:04:30]} Bg6 {[%emt 0:03:30]} 19. h4 {[%emt 0:05:30]} Nxe5 {[%emt 0:08:30]} 20. h5 {[%emt 0:00:30]} Bd3 {[%emt 0:01:30]} 21. Bxd3 {[%emt 0:00:30]} Rxd3 {[%emt 0:00:00]} 22. Bxe5 {[%emt 0:00:30]} Rxe5 $11 {[%emt 0:00:00][%mdl 4096] Endgame KRR-KRR} 23. Rf6 {[%emt 0:04:30]} Rexe3 {[%emt 0:05:30]} (23... Rdxe3 24. Rxh6 b5 25. Rf6 $16) 24. Rxh6 {[%emt 0:01:30] [#]} Rd2 {[%emt 0:02:38][%cal Oe3g3]} 25. Rf1 {[%emt 0:01:30]} Ree2 $1 {[%emt 0:02:04]} 26. Rxf7 {[%emt 0:02:30] Black must now prevent Rh8+.} Rxg2+ {[%emt 0:01:40]} 27. Kf1 {[%emt 0:00:30] White wants to mate with Rh8+.} Rh2 {[%emt 0:02:32]} 28. Kg1 {[%emt 0:00:30] Inhibits Rh1+.   Weighted Error Value: White=0.04 (flawless) /Black=0.01 (flawless)   Inaccurate:     	White=1     	Black=1      OK:         	White=14    	Black=12     Best:        	White=1     	---        Strong:       	---       	Black=1} 1/2-1/2

[Event "German Bundesliga 2024-25"]
[Site "Germany"]
[Date "2025.01.11"]
[Round "5"]
[White "Svidler, Peter"]
[Black "Aravindh, Chithambaram VR."]
[Result "1/2-1/2"]
[Annotator "TA"]
[ECO "B45"]
[WhiteElo "2698"]
[BlackElo "2706"]
[PlyCount "194"]
[EventDate "2024.09.27"]
[EventType "team-tourn"]
[EventCountry "GER"]
[TimeControl "40/5400+30:1800+30"]

{[%evp 11,194,0,0,0,0,0,0,-2,0,0,14,-9,0,-14,0,14,0,-22,-18,-34,23,18,22,0,-14,-81,-92,-92,-88,-119,-127,-83,-120,-100,-91,-100,-22,-98,-62,-154,-162,-139,-119,-166,-125,-158,-166,-161,-150,-147,-150,-156,-149,-150,-152,-145,-152,-154,-147,-147,-153,-153,-131,-171,-166,-170,-142,-135,-149,-135,-139,-141,-141,-135,-104,-110,-105,-140,-122,-120,-70,-76,0,-113,-111,-111,-101,-126,-120,-118,-91,-85,-97,-125,-91,-89,-90,-81,-101,-103,-85,-133,-72,-98,-85,-132,-132,-141,-65,-103,-37,-110,-35,-56,0,-75,-70,-74,-27,-27,-8,-8,-8,-8,-8,-8,-8,-8,-8,-8,-8,-8,-8,-8,-8,-8,-8,-8,-8,-8,-8,-20,-8,-8,-8,-8,-8,-8,0,-8,-8,-8,-8,-8,-8,-8,-8,-8,0,-8,-8,-8,-8,-8,0,-8,-8,-8,-8,-8,0,-8,-8,-8,-8,-8,-8,-8,-8,-8,-8,-304,-8,-8,-8]} 1. e4 {[%emt 0:01:00]} c5 {[%emt 0:01:00]} 2. Nf3 {[%emt 0:00:00]} e6 {[%emt 0:00:00]} 3. d4 {[%emt 0:01:00]} cxd4 {[%emt 0:00:00]} 4. Nxd4 {[%emt 0:00:00]} Nf6 {[%emt 0:00:30]} 5. Nc3 {[%emt 0:00:00]} Nc6 {[%emt 0:00:00]} 6. a3 {[%emt 0:00:30]} Be7 {[%emt 0:00:00]} 7. Nxc6 {[%emt 0:03:30] B45: Sicilian Four Knights.} bxc6 {[%emt 0:00:30]} 8. e5 {[%emt 0:00:30]} Nd5 {[%emt 0:00:00] next ...Nxc3 is good for Black.} 9. Qg4 {[%emt 0:00:30]} g6 {[%emt 0:00:00]} 10. Qg3 {[%emt 0:00:00]} d6 {[%emt 0:00:30]} 11. Ne4 {[%emt 0:13:00]} dxe5 {[%emt 0:00:30]} 12. h4 {[%emt 0:00:30][%cal Oc2c4]} f5 {[%emt 0:00:30]} 13. Qxe5 {[%emt 0:01:30]} Rg8 $146 {[%emt 0:02:30]} (13... O-O 14. Ng5 Bf6 15. Qg3 e5 16. Bc4 Rb8 17. Bb3 f4 18. Qf3 Bxg5 19. hxg5 e4 {½-½ Sapenov,D (2350)-Asadli,V (2562) Wch Rapid Samarkand 2023 (6)}) 14. Ng5 {[%emt 0:05:30]} Bf6 $40 {[%emt 0:00:30][%mdl 128] Inhibits Nxh7. Black is up to no good.} 15. Qe2 {[%emt 0:04:30] A sharp opening} Rg7 {[%emt 0:26:30]} (15... Rb8 $15) 16. c4 $11 {[%emt 0:06:30]} (16. Nxe6 $2 Bxe6 17. Qf3 (17. Qxe6+ $2 Re7 $19) 17... Re7 $19 (17... Bxh4 $2 18. Be2 $19)) 16... Nb6 {[%emt 0:03:30]} 17. Nf3 {[%emt 0:07:30]} (17. Nxe6 $2 Bxe6 18. Rh3 (18. Qxe6+ $2 Re7 $19) 18... Re7 $19) 17... e5 {[%emt 0:33:30]} 18. h5 {[%emt 0:08:30]} (18. Nxe5 Re7 19. f4 (19. Bf4 $2 Qd4 $19) 19... Nd7 $17) (18. Bg5 $11 e4 19. c5) 18... g5 $1 $17 {[%emt 0:00:30]} 19. h6 {[%emt 0:03:30]} (19. Nxe5 Re7 20. f4 Qc7 $17 (20... Nd7 $2 21. Be3 $19)) 19... Rf7 {[%emt 0:01:30]} 20. g4 {[%emt 0:08:30]} (20. Nxe5 Re7 21. f4 (21. Qh5+ $2 Kf8 $19) 21... gxf4 22. Bxf4 Qd6 $15) 20... e4 {[%emt 0:03:30]} (20... fxg4 21. Nd2 $14 (21. Nxe5 $2 Bxe5 22. Be3 Bf5 $19)) 21. Nd2 {[%emt 0:02:30]} Re7 {[%emt 0:04:30]} (21... fxg4 22. Nxe4 (22. Qxe4+ $2 Re7 $19) 22... Be6 23. Bg2 $16 (23. Nc5 Re7 $14)) 22. Bg2 {[%emt 0:02:30]} Qd4 {[%emt 0:03:20]} (22... fxg4 $2 23. Nxe4 (23. Bxe4 $2 Qd4 $17) 23... Bf5 24. Nxf6+ $18) 23. O-O {[%emt 0:02:30]} Kf7 {[%emt 0:00:46]} (23... fxg4 $2 24. Nxe4 (24. Bxe4 $2 Bf5 $19) 24... Bf5 25. Rd1 $18) (23... e3 $1 $17 {[%cal Re3d2]} 24. fxe3 (24. Bxc6+ Bd7 $17) 24... Rxe3) 24. Rd1 {[%emt 0:06:30]} (24. Re1 $11 {keeps the balance.}) 24... Kg6 {[%emt 0:03:28]} (24... fxg4 $2 25. Nxe4 Qe5 26. Rd6 $18) (24... e3 {is more complex.} 25. fxe3 Rxe3 26. Nf3 Rxe2+ 27. Rxd4 fxg4 28. Nxg5+ Kg6) 25. a4 {[%emt 0:05:02]} (25. Nf1 $15 Qxc4 26. Qxc4 Nxc4 27. gxf5+ Bxf5 (27... Kxh6 28. Ng3 $14) 28. Ng3) 25... e3 $1 {[%emt 0:05:53] Black has a king side majority} (25... Kxh6 26. Ra3 $16 (26. a5 e3 $18)) 26. fxe3 {[%emt 0:00:33]} Rxe3 {[%emt 0:00:39]} 27. Nf3 {[%emt 0:00:19]} Rxe2+ $19 {[%emt 0:00:27] Black attacks} 28. Nxd4 {[%emt 0:00:03] [#]} Rxg2+ {[%emt 0:01:04][%mdl 512]} 29. Kxg2 {[%emt 0:00:07]} f4 {[%emt 0:00:25][%csl Of4] Black has a strong passed pawn} 30. Kh3 {[%emt 0:04:35]} (30. Nxc6 $2 Bb7 (30... Kxh6 31. Rd6 $14) (30... Bxg4 $2 31. Re1 $19) 31. Kg1 (31. Rd6 $2 Nxc4 32. Rxf6+ Kxf6 $19) 31... Bxc6 $19) 30... Kxh6 {[%emt 0:07:25]} 31. Nxc6 {[%emt 0:02:47]} Kg7 {[%emt 0:00:03][%cal Oh7h5]} 32. a5 {[%emt 0:05:16]} Nxc4 {[%emt 0:00:04][%cal Oh7h5]} 33. Ra4 {[%emt 0:00:24] [#]} h5 $1 {[%emt 0:00:11]} 34. Kg2 {[%emt 0:00:11]} Bxg4 {[%emt 0:00:18]} (34... Nxb2 35. Bxb2 Bxb2 36. gxh5 $16) 35. Rd5 {[%emt 0:00:29]} Be6 {[%emt 0:01:39] This pair of bishops is nice.} (35... Nxb2 $6 36. Bxb2 Bxb2 37. Rxg5+ Kh6 38. Rxg4 hxg4 39. Rxf4 $11) 36. Rc5 {[%emt 0:00:05]} Nd6 {[%emt 0:00:08]} (36... Bxb2 $2 37. Raxc4 Bf6 38. Rc2 $18) 37. Nd4 {[%emt 0:00:37]} Bg4 {[%emt 0:01:14] And now ...Re8 would win.} 38. Nf3 {[%emt 0:05:28]} Rc8 {[%emt 0:01:25]} 39. Rxc8 {[%emt 0:00:49]} Bxc8 {[%emt 0:00:04]} 40. Nxg5 {[%emt 0:00:57]} Bxg5 {[%emt 0:00:27]} 41. Bxf4 {[%emt 0:00:48]} Be7 {[%emt 0:12:24]} 42. Rb4 {[%emt 0:00:30]} Kf7 {[%emt 0:09:09]} 43. Rb8 {[%emt 0:00:30]} Bb7+ {[%emt 0:00:10]} 44. Kh3 {[%emt 0:05:30] Hoping for Bxd6.} Bc6 {[%emt 0:00:38]} 45. Rh8 {[%emt 0:04:30]} Bd7+ {[%emt 0:00:27]} (45... h4 $17 46. Rh7+ Ke8) 46. Kg2 $15 {[%emt 0:00:30]} Bc6+ {[%emt 0:02:03]} 47. Kh3 $1 {[%emt 0:00:30]} h4 {[%emt 0:04:18]} 48. Rh7+ {[%emt 0:08:15]} Ke8 {[%emt 0:00:08]} 49. Rh6 {[%emt 0:06:55]} Bd7+ {[%emt 0:00:17]} 50. Kh2 {[%emt 0:00:04]} Nb5 {[%emt 0:00:44]} 51. Rh8+ {[%emt 0:02:50]} Kf7 {[%emt 0:00:04]} 52. a6 {[%emt 0:00:04]} Bf6 {[%emt 0:01:57]} 53. Rh7+ {[%emt 0:00:43]} Ke8 {[%emt 0:00:38]} 54. Rh6 {[%emt 0:00:42]} Ke7 {[%emt 0:00:37][%cal Od7g4]} 55. Rh7+ {[%emt 0:00:02]} Ke6 {[%emt 0:00:08][%cal Od7c6]} 56. Bb8 {[%emt 0:00:13] [#]} (56. Be3) 56... Bg5 {[%emt 0:03:20]} (56... Bc6 $142 $1 57. Rh5 (57. Bxa7 $2 Be4 $19) 57... Bd8 (57... Bxb2 58. Rxh4 Be5+ 59. Bxe5 $11)) 57. b3 {[%emt 0:00:54]} Bf6 {[%emt 0:00:34]} 58. Kg2 {[%emt 0:00:58]} (58. Kh3 $142) 58... Bc6+ $17 {[%emt 0:00:43]} 59. Kh3 {[%emt 0:00:44]} Be7 {[%emt 0:00:15]} (59... Be4 $17 60. Rb7 Nd6 (60... Bxb7 61. axb7 Nd4 62. Bxa7 $11)) 60. Rh6+ {[%emt 0:00:41]} Kd7 {[%emt 0:00:05]} (60... Kd5 $17 61. Rh5+ Ke6) 61. Rh7 {[%emt 0:00:27]} ({Better is} 61. Kg4 $15) 61... Bd5 {[%emt 0:00:59]} (61... Bf3 $17 62. Bf4 Be4) 62. Rh5 $15 {[%emt 0:00:14]} Bc6 {[%emt 0:00:57]} (62... Kc6 $15 63. Rh6+ Kd7) 63. Bf4 {[%emt 0:01:57]} (63. Rh7 $11) 63... Ke6 $17 {[%emt 0:00:50]} 64. Bg5 {[%emt 0:01:55]} Bxg5 {[%emt 0:00:25]} ({Black should play} 64... Bc5 $17) 65. Rxg5 $11 {[%emt 0:00:34]} Nd4 {[%emt 0:00:30]} 66. Rg6+ {[%emt 0:00:47]} Kd5 {[%emt 0:00:17]} 67. Rg7 {[%emt 0:00:53]} Nb5 {[%emt 0:00:09]} 68. Kxh4 {[%emt 0:00:03]} Kc5 {[%emt 0:00:07]} 69. Kg3 {[%emt 0:01:16]} Kb6 {[%emt 0:01:13]} 70. Kf2 {[%emt 0:01:13]} Nd4 {[%emt 0:00:10]} 71. Rg4 {[%emt 0:00:25]} Ne6 {[%emt 0:00:30]} ({Much worse is} 71... Nxb3 $6 72. Rb4+ Kxa6 73. Rxb3 $14) 72. Ke3 {[%emt 0:00:56]} Nc5 {[%emt 0:00:59]} 73. b4 {[%emt 0:00:12]} Nxa6 {[%emt 0:00:19]} 74. Kd2 {[%emt 0:00:03]} Nc7 {[%emt 0:00:21]} 75. Rg5 {[%emt 0:00:12]} Bd5 {[%emt 0:00:34]} 76. Kc3 {[%emt 0:00:08]} a6 {[%emt 0:00:14]} 77. Rg7 {[%emt 0:00:11]} Nb5+ {[%emt 0:00:25]} 78. Kb2 {[%emt 0:00:03]} Nd4 {[%emt 0:00:58]} 79. Rg4 {[%emt 0:01:03]} Nb5 {[%emt 0:00:27]} 80. Rg6+ {[%emt 0:00:08]} Bc6 {[%emt 0:00:06]} 81. Rg5 {[%emt 0:00:09]} Nd4 {[%emt 0:00:08]} 82. Kc3 {[%emt 0:00:22]} Ne6 {[%emt 0:00:08]} 83. Re5 {[%emt 0:00:06]} Nc7 {[%emt 0:00:05]} (83... Bd7 $5) 84. Rg5 {[%emt 0:00:10]} Nb5+ {[%emt 0:00:40]} 85. Kb2 {[%emt 0:00:11]} Nd6 {[%emt 0:00:04]} 86. Rh5 {[%emt 0:00:22]} Kc7 {[%emt 0:01:01]} 87. Rh7+ {[%emt 0:00:33]} Kb6 {[%emt 0:00:31]} 88. Rh5 {[%emt 0:00:05]} Nf7 {[%emt 0:00:24]} 89. Rf5 {[%emt 0:00:11]} Nd8 {[%emt 0:00:22]} 90. Kc3 {[%emt 0:01:10]} Ne6 {[%emt 0:00:09]} 91. Re5 {[%emt 0:00:10]} Nf4 {[%emt 0:00:05]} 92. Rf5 {[%emt 0:00:23]} Ne2+ {[%emt 0:00:10]} 93. Kd3 {[%emt 0:01:34]} Be4+ {[%emt 0:00:08]} 94. Kxe2 {[%emt 0:00:06]} (94. Kxe4 Ng3+ 95. Kf4 Nxf5 96. Kxf5 Kb5 97. Ke5 Kxb4 98. Kd4 Kb3 99. Ke3 a5 100. Kd2 Kb2 101. Ke3 Kc3 102. Kf2 a4 103. Kf3 a3 104. Kg4 a2 105. Kh5 a1=Q (105... a1=B 106. Kh6 $11) 106. Kg6 Qf1 107. Kg7 Qf5 108. Kh6 Qg4 109. Kh7 Kd4 110. Kh6 Ke5 111. Kh7 Kf6 112. Kh8 Qg7#) 94... Bxf5 {[%emt 0:00:06]} 95. Kd2 {[%emt 0:00:00]} Kb5 {[%emt 0:00:06]} 96. Kc3 {[%emt 0:00:03] [#]} a5 $2 {[%emt 0:00:00]} (96... Ka4 $1 $19 {[%cal Ra4a3] ( -> ...Ka3)} 97. Kb2 Kxb4) 97. bxa5 {[%emt 0:00:03]} Kxa5 {[%emt 0:00:00] Black had all chances to win.   Weighted Error Value: White=0.15 (very precise) /Black=0.14 (very precise)   Missed win:     	---       	Black=1      Mistake:       	White=8     	Black=9      Inaccurate:     	White=6     	Black=2      OK:         	White=47    	Black=27     Best:        	White=9     	Black=6      Strong:       	White=1     	Black=3      Brilliant:      	---       	Black=1} 1/2-1/2